[Event "19th Lviv Tradition 2018"]
[Site "Lviv"]
[Date "2018.01.23"]
[Round "2"]
[White "Sevostianov, Pavel"]
[Black "Kagramanianz, Vartan"]
[Result "1/2-1/2"]
[ECO "A15"]
[WhiteElo "2266"]
[BlackElo "2247"]
[Annotator "NA RC"]
[PlyCount "53"]
[EventDate "2018.??.??"]
[EventType "tourn"]
[EventCountry "UKR"]
[SourceTitle "playchess.com"]
[Source "ChessBase"]
[SourceQuality "1"]
[TimeControl "5400+30"]

1. c4 Nf6 2. g3 e6 3. Nf3 d5 4. b3 Be7 5. Bg2 O-O 6. O-O c5 7. Bb2 Nc6 8. e3 b6 9. Nc3 Bb7 10. cxd5 Nxd5 11. Nxd5 Qxd5 12. d4 Rad8 13. Ne5 Qd6 14. dxc5 Qxc5 15. Nd7 Qf5 16. e4 Qg5 17. h4 Qh6 18. Bc1 g5 19. hxg5 Qg7 20. e5 Kh8 21. Bf4 Nb8 22. Bxb7 Rxd7 23. Qf3 Bxg5 24. Be4 Rdd8 25. Bxg5 Qxg5 26. Qf4 Qxf4 27. gxf4 1/2-1/2

[Event "19th Lviv Tradition 2018"]
[Site "Lviv"]
[Date "2018.01.23"]
[Round "2"]
[White "Bykovskiy, Oleg"]
[Black "Medvedyk, Volodymyr"]
[Result "1-0"]
[ECO "C26"]
[WhiteElo "2197"]
[BlackElo "2116"]
[Annotator "NA"]
[PlyCount "103"]
[EventDate "2018.??.??"]
[EventType "tourn"]
[EventCountry "UKR"]
[SourceTitle "playchess.com"]
[Source "ChessBase"]
[SourceQuality "1"]
[TimeControl "5400+30"]

1. e4 {[%emt 0:00:55]} e5 {[%emt 0:00:40]} 2. Nc3 {[%emt 0:00:08]} Nf6 {[%emt 0:00:35]} 3. g3 {[%emt 0:00:15]} Bc5 {[%emt 0:00:22]} 4. Bg2 {[%emt 0:00:10]} Nc6 {[%emt 0:00:13]} 5. d3 {[%emt 0:00:07]} a6 {[%emt 0:00:42]} 6. Be3 {[%emt 0:00:09] C26: Vienna Game: 2...Nf6, sidelines} (6. Nge2 d6 7. h3 Be6 8. f4 h6 9. f5 Bd7 10. b3 Nd4 11. Bb2 Bc6 12. Nxd4 Bxd4 13. Qe2 b5 14. Nd1 {1-0 (60) Nakamura,H (2774)-Topalov,V (2749) Saint Louis 2017}) 6... Nd4 {[%emt 0:04:53]} 7. Nf3 {[%emt 0:02:17]} d6 {[%emt 0:06:21]} 8. h3 {[%emt 0:00:32]} O-O $146 {[%emt 0:02:06]} ({Predecessor:} 8... Bd7 9. Bxd4 Bxd4 10. Nxd4 exd4 11. Ne2 c5 12. O-O O-O 13. c3 dxc3 14. Nxc3 Rb8 15. d4 {1-0 (28) Aleskerov,F (2406)-Serna,J (2007) Princeton 2012}) 9. Bxd4 {[%emt 0:01:45]} exd4 {[%emt 0:11:59]} 10. Ne2 {[%emt 0:00:32]} d5 {[%emt 0:05:53]} 11. exd5 {[%emt 0:03:19]} Qxd5 {[%emt 0:03:04]} 12. O-O {[%emt 0:00:43]} Qd6 {[%emt 0:07:01]} 13. Qd2 {[%emt 0:01:43]} Re8 {[%emt 0:05:25]} 14. a3 {[%emt 0:00:27]} Bd7 {[%emt 0:02:38]} 15. Nh4 {[%emt 0:02:51]} Nd5 {[%emt 0:12:51]} 16. Rae1 {[%emt 0:00:19]} Re7 {[%emt 0:02:48]} 17. g4 {[%emt 0:08:17]} Rae8 {[%emt 0:04:31]} 18. Be4 {[%emt 0:02:34]} g6 {[%emt 0:05:44]} 19. Qh6 {[%emt 0:04:58]} Bc6 {[%emt 0:09:39]} 20. b4 {[%emt 0:09:11]} Bb6 {[%emt 0:02:57]} 21. Ng3 {[%emt 0:00:26]} Nf4 {[%emt 0:03:18]} 22. Nf3 {[%emt 0:03:44]} f6 {[%emt 0:05:35]} 23. Bxc6 {[%emt 0:00:54]} bxc6 {[%emt 0:01:45]} 24. Ne4 {[%emt 0:01:42]} Rxe4 {[%emt 0:00:46]} 25. dxe4 {[%emt 0:00:05]} d3 {[%emt 0:00:34]} 26. e5 {[%emt 0:02:20]} fxe5 {[%emt 0:00:35] [#]} 27. Ng5 $2 {[%emt 0:02:24]} ({Only move:} 27. Qxf4 $1 $18 exf4 28. Rxe8+ Kf7 29. Rfe1) 27... Re7 $1 {[%emt 0:00:31]} 28. cxd3 {[%emt 0:00:14]} Qxd3 {[%emt 0:00:31]} 29. Kh2 {[%emt 0:01:56]} Qd5 {[%emt 0:00:30]} 30. Ne4 {[%emt 0:00:05]} Qe6 {[%emt 0:00:32]} (30... Rf7 $11) 31. Rd1 {[%emt 0:00:26]} Bd4 {[%emt 0:00:26]} 32. Rfe1 {[%emt 0:09:59]} Rf7 {[%emt 0:00:25]} 33. Qh4 {[%emt 0:01:24]} Qb3 $2 {[%emt 0:00:37] [#]} (33... Qd5 $14) 34. Qg3 $2 {[%emt 0:01:57]} (34. Rxd4 $1 $18 {[%mdl 512]} exd4 35. Ng5) 34... Qxg3+ {[%emt 0:00:32]} 35. Kxg3 {[%emt 0:00:03]} Nd5 {[%emt 0:00:30]} 36. Re2 {[%emt 0:01:07]} Kg7 {[%emt 0:00:29]} 37. Rc1 {[%emt 0:00:28]} Ne7 {[%emt 0:00:29]} 38. Nc5 {[%emt 0:01:02]} Nd5 {[%emt 0:00:30]} (38... Rf6 {is a better defense.} 39. Rc4 Nd5) 39. Ne6+ {[%emt 0:00:38]} Kh6 {[%emt 0:00:31]} 40. Rxc6 {[%emt 0:02:33]} Bb6 {[%emt 0:00:31]} 41. Kh4 {[%emt 0:01:44]} g5+ {[%emt 0:00:29]} 42. Nxg5+ {[%emt 0:00:05]} Kg7 {[%emt 0:00:21]} 43. Nxf7 {[%emt 0:00:20]} Kxf7 {[%emt 0:00:11] [#]} 44. Rxb6 $1 {[%emt 0:00:59]} Nxb6 {[%emt 0:00:13]} 45. Rxe5 {[%emt 0:00:06]} Nc4 {[%emt 0:00:03]} 46. Rc5 {[%emt 0:00:05]} Nxa3 {[%emt 0:00:06]} 47. Rxc7+ {[%emt 0:00:05]} Kg8 {[%emt 0:00:04]} 48. Kg5 {[%emt 0:00:15]} Nb5 {[%emt 0:00:10]} 49. Rd7 {[%emt 0:00:02]} Nc3 {[%emt 0:00:10]} 50. f3 {[%emt 0:00:01]} a5 {[%emt 0:00:18]} 51. bxa5 {[%emt 0:00:13]} h5 {[%emt 0:00:09]} 52. a6 {[%emt 0:00:10]} 1-0

[Event "19th Lviv Tradition 2018"]
[Site "Lviv"]
[Date "2018.01.23"]
[Round "3"]
[White "Mosesov, Danylo"]
[Black "Molchanov, Oleksii"]
[Result "1/2-1/2"]
[ECO "B10"]
[WhiteElo "2294"]
[BlackElo "2329"]
[Annotator "NA"]
[PlyCount "60"]
[EventDate "2018.??.??"]
[EventType "tourn"]
[EventCountry "UKR"]
[SourceTitle "playchess.com"]
[Source "ChessBase"]
[SourceQuality "1"]
[TimeControl "5400+30"]

1. e4 {[%emt 0:00:00]} c6 {[%emt 0:02:30]} 2. Ne2 {[%emt 0:00:00]} d5 {[%emt 0:01:19]} 3. e5 {[%emt 0:00:04]} c5 {[%emt 0:01:52]} 4. c3 {[%emt 0:01:24]} Bf5 {[%emt 0:09:38]} 5. d4 {[%emt 0:00:15]} Nc6 $11 {[%emt 0:00:48] LiveBook: 61 Games} 6. Ng3 {[%emt 0:04:20]} Bxb1 {[%emt 0:03:25]} 7. Rxb1 {[%emt 0:00:04]} cxd4 {[%emt 0:00:20]} 8. cxd4 {[%emt 0:00:04]} e6 {[%emt 0:00:09]} 9. a3 {[%emt 0:01:26]} g6 {[%emt 0:04:49]} 10. h4 {[%emt 0:02:19]} h5 {[%emt 0:00:24]} 11. Bg5 {[%emt 0:02:30]} Qa5+ {[%emt 0:04:23]} 12. Bd2 {[%emt 0:00:19]} Qb6 {[%emt 0:00:32]} 13. Bc3 {[%emt 0:00:50]} Be7 {[%emt 0:00:05]} 14. Bd3 {[%emt 0:07:22]} Rc8 {[%emt 0:03:36]} 15. Ne2 {[%emt 0:01:31]} Nh6 {[%emt 0:00:37]} 16. Qd2 {[%emt 0:03:53]} Nf5 {[%emt 0:01:44]} 17. Bxf5 {[%emt 0:00:22]} gxf5 {[%emt 0:00:42]} 18. Rd1 {[%emt 0:00:05]} Kd7 {[%emt 0:04:58]} 19. Nf4 {[%emt 0:01:12]} Rcg8 {[%emt 0:02:29]} 20. g3 {[%emt 0:06:57]} Qb3 {[%emt 0:00:58]} 21. Kf1 {[%emt 0:03:40]} Rg4 {[%emt 0:00:53]} 22. Kg2 {[%emt 0:00:54]} a6 {[%emt 0:10:01]} 23. Rc1 {[%emt 0:02:16]} Rgg8 {[%emt 0:01:20]} 24. Qe2 {[%emt 0:01:31]} Rg4 {[%emt 0:02:33]} 25. Qd2 {[%emt 0:00:05]} Rgg8 {[%emt 0:00:48]} 26. Qe2 {[%emt 0:00:04]} Rg4 {[%emt 0:00:07]} 27. Qd2 {[%emt 0:00:02]} Rgg8 {[%emt 0:00:30]} 28. Qe2 {[%emt 0:00:04]} Rg4 {[%emt 0:00:05]} 29. Qd2 {[%emt 0:00:02]} Rgg8 {[%emt 0:00:14]} 30. Qe2 {[%emt 0:00:03]} Rg4 1/2-1/2

[Event "19th Lviv Tradition 2018"]
[Site "Lviv"]
[Date "2018.01.23"]
[Round "3"]
[White "Kyrychenko, Maryan"]
[Black "Sevostianov, Pavel"]
[Result "1-0"]
[ECO "B00"]
[WhiteElo "2254"]
[BlackElo "2266"]
[Annotator "NA"]
[PlyCount "81"]
[EventDate "2018.??.??"]
[EventType "tourn"]
[EventCountry "UKR"]
[SourceTitle "playchess.com"]
[Source "ChessBase"]
[SourceQuality "1"]
[TimeControl "5400+30"]

1. e4 {[%emt 0:00:00]} Nc6 {[%emt 0:03:29]} 2. Nf3 {[%emt 0:00:00]} d6 {[%emt 0:00:20]} 3. d4 {[%emt 0:00:00]} Nf6 {[%emt 0:00:05]} 4. Nc3 {[%emt 0:00:22]} Bg4 {[%emt 0:00:48]} 5. Be3 {[%emt 0:00:57]} e6 {[%emt 0:00:28]} 6. h3 {[%emt 0:00:55]} Bh5 {[%emt 0:00:09]} 7. Be2 {[%emt 0:01:31]} Be7 {[%emt 0:01:08]} 8. O-O {[%emt 0:00:18]} O-O {[%emt 0:00:14] LiveBook: 18 Games} 9. Nd2 {[%emt 0:03:09]} Bxe2 {[%emt 0:02:02]} 10. Qxe2 {[%emt 0:00:17]} d5 $14 {[%emt 0:01:29]} 11. e5 {[%emt 0:02:14]} Nd7 {[%emt 0:00:09]} 12. Qg4 {[%emt 0:02:36]} Kh8 {[%emt 0:06:05]} 13. f4 {[%emt 0:02:55]} f5 {[%emt 0:00:18]} 14. exf6 {[%emt 0:01:04]} Nxf6 {[%emt 0:04:35]} 15. Qe2 {[%emt 0:01:46]} Bb4 {[%emt 0:02:14]} 16. Nf3 {[%emt 0:06:59]} Bxc3 {[%emt 0:00:42]} 17. bxc3 {[%emt 0:00:13]} Ne4 {[%emt 0:00:13]} 18. Qd3 {[%emt 0:00:09]} Qd6 {[%emt 0:05:58]} 19. c4 {[%emt 0:03:26]} Nb4 {[%emt 0:07:21]} 20. Qd1 {[%emt 0:22:40]} dxc4 {[%emt 0:02:42]} 21. Ne5 {[%emt 0:01:06]} Nd5 {[%emt 0:01:32]} 22. Qf3 {[%emt 0:03:15]} Nef6 {[%emt 0:04:20]} 23. Nxc4 {[%emt 0:04:34]} Qc6 {[%emt 0:00:32]} 24. Qe2 {[%emt 0:00:17]} Nxe3 {[%emt 0:02:23]} 25. Nxe3 {[%emt 0:00:06]} Qe4 {[%emt 0:01:00]} 26. Qd2 {[%emt 0:05:35]} Rad8 {[%emt 0:01:07]} 27. c3 {[%emt 0:01:27]} c5 {[%emt 0:00:58]} 28. Rad1 {[%emt 0:00:35]} cxd4 {[%emt 0:00:21]} 29. cxd4 {[%emt 0:00:01]} Nh5 {[%emt 0:03:26]} 30. Ng4 {[%emt 0:00:51]} Rxf4 {[%emt 0:09:27]} 31. Rfe1 {[%emt 0:01:45]} Qg6 {[%emt 0:02:23]} 32. Qa5 {[%emt 0:01:51]} Rdf8 {[%emt 0:05:01]} 33. Qxa7 {[%emt 0:00:38]} Ng3 {[%emt 0:01:04]} 34. Qa3 {[%emt 0:06:30]} h5 {[%emt 0:06:17]} 35. Ne5 {[%emt 0:01:09]} Qg5 {[%emt 0:00:40]} 36. h4 {[%emt 0:02:15]} Rxh4 {[%emt 0:11:46]} 37. Qxf8+ {[%emt 0:00:07]} Kh7 {[%emt 0:00:04]} 38. Nf3 {[%emt 0:00:12]} Rh1+ {[%emt 0:00:13]} 39. Kf2 {[%emt 0:00:01]} Rf1+ {[%emt 0:00:52]} 40. Rxf1 {[%emt 0:00:20]} Ne4+ {[%emt 0:00:06]} 41. Kg1 {[%emt 0:00:45]} 1-0

[Event "19th Lviv Tradition 2018"]
[Site "Lviv"]
[Date "2018.01.23"]
[Round "3"]
[White "Kagramanianz, Vartan"]
[Black "Bets, Anatolij"]
[Result "1/2-1/2"]
[ECO "C01"]
[WhiteElo "2247"]
[BlackElo "2266"]
[Annotator "NA"]
[PlyCount "61"]
[EventDate "2018.??.??"]
[EventType "tourn"]
[EventCountry "UKR"]
[SourceTitle "playchess.com"]
[Source "ChessBase"]
[SourceQuality "1"]
[TimeControl "5400+30"]

1. e4 {[%emt 0:00:00]} e6 {[%emt 0:00:12]} 2. d4 {[%emt 0:00:00]} d5 {[%emt 0:00:35]} 3. exd5 {[%emt 0:01:10]} exd5 {[%emt 0:00:25]} 4. Nf3 {[%emt 0:00:13]} Nf6 {[%emt 0:00:28]} 5. Bd3 {[%emt 0:00:28]} Bd6 {[%emt 0:00:30]} 6. O-O {[%emt 0:00:20]} O-O {[%emt 0:00:20]} 7. Bg5 {[%emt 0:00:13]} Bg4 {[%emt 0:00:58]} 8. Nbd2 {[%emt 0:01:24]} Nbd7 {[%emt 0:00:27]} 9. c3 {[%emt 0:03:09]} c6 $11 {[%emt 0:01:15] LiveBook: 159 Games} 10. Qc2 {[%emt 0:01:23]} Qc7 {[%emt 0:01:15]} 11. Rae1 {[%emt 0:01:24]} Rae8 {[%emt 0:02:57]} 12. h3 {[%emt 0:00:21]} Bh5 {[%emt 0:00:30]} 13. Rxe8 {[%emt 0:02:42]} Rxe8 {[%emt 0:00:04]} 14. Re1 {[%emt 0:00:29]} Rxe1+ {[%emt 0:02:02]} 15. Nxe1 {[%emt 0:00:13]} Bf4 {[%emt 0:01:22]} 16. Bxf4 {[%emt 0:00:45]} Qxf4 {[%emt 0:00:03]} 17. g3 {[%emt 0:01:51]} Qd6 {[%emt 0:01:19]} 18. Nef3 {[%emt 0:01:29]} Bg6 {[%emt 0:00:25]} 19. Kg2 {[%emt 0:01:08]} Bxd3 {[%emt 0:05:43]} 20. Qxd3 {[%emt 0:00:30]} Qe6 {[%emt 0:01:11]} 21. Nf1 {[%emt 0:05:13]} h6 {[%emt 0:03:56]} 22. Qe3 {[%emt 0:01:34]} Qxe3 {[%emt 0:00:15]} 23. Nxe3 {[%emt 0:00:07]} g6 {[%emt 0:00:06]} 24. Kf1 {[%emt 0:00:22]} Kf8 {[%emt 0:00:23]} 25. Ke2 {[%emt 0:00:29]} Ke7 {[%emt 0:00:11]} 26. Nd2 {[%emt 0:02:15]} h5 {[%emt 0:01:45]} 27. h4 {[%emt 0:00:49]} Ke6 {[%emt 0:00:51]} 28. Ng2 {[%emt 0:02:12]} Ne8 {[%emt 0:06:37]} 29. Nf4+ {[%emt 0:00:21]} Kf5 {[%emt 0:00:24]} 30. Nf1 {[%emt 0:00:45]} Nd6 {[%emt 0:00:21]} 31. Ne3+ {[%emt 0:00:29]} 1/2-1/2

[Event "19th Lviv Tradition 2018"]
[Site "Lviv"]
[Date "2018.01.23"]
[Round "3"]
[White "Kryvoruchko, Vita"]
[Black "Bykovskiy, Oleg"]
[Result "0-1"]
[ECO "A41"]
[WhiteElo "2192"]
[BlackElo "2197"]
[Annotator "NA"]
[PlyCount "66"]
[EventDate "2018.??.??"]
[EventType "tourn"]
[EventCountry "UKR"]
[SourceTitle "playchess.com"]
[Source "ChessBase"]
[SourceQuality "1"]
[TimeControl "5400+30"]

1. d4 {[%emt 0:00:00]} d6 {[%emt 0:00:05]} 2. c4 {[%emt 0:00:07]} e5 {[%emt 0:00:05]} 3. Nf3 {[%emt 0:08:58]} e4 {[%emt 0:01:05]} 4. Ng5 {[%emt 0:00:10]} f5 {[%emt 0:00:40]} 5. d5 {[%emt 0:04:06]} Be7 {[%emt 0:00:22]} 6. h4 {[%emt 0:00:57]} Nf6 {[%emt 0:00:55]} 7. Nc3 $15 {[%emt 0:00:39]} O-O {[%emt 0:00:47]} 8. e3 {[%emt 0:08:31]} Ng4 {[%emt 0:02:18]} 9. Ne6 {[%emt 0:02:02]} Bxe6 {[%emt 0:00:03]} 10. dxe6 {[%emt 0:00:05]} Ne5 {[%emt 0:02:01]} 11. Nd5 {[%emt 0:11:09]} c6 {[%emt 0:00:38]} 12. Nf4 {[%emt 0:00:04]} Na6 {[%emt 0:00:04]} 13. Bd2 {[%emt 0:01:40]} Rf6 {[%emt 0:05:04]} 14. Bc3 {[%emt 0:01:09]} Rh6 {[%emt 0:00:27]} 15. Qc2 {[%emt 0:09:04]} g5 {[%emt 0:03:01]} 16. O-O-O {[%emt 0:02:04]} Qc8 {[%emt 0:01:25]} 17. Nh3 {[%emt 0:01:06]} Rxh4 {[%emt 0:00:38]} 18. Bxe5 {[%emt 0:00:18]} dxe5 {[%emt 0:00:04]} 19. Rd7 {[%emt 0:01:50]} Qf8 {[%emt 0:03:34]} 20. f3 {[%emt 0:11:47]} Nc5 {[%emt 0:04:00]} 21. Rd1 {[%emt 0:01:21]} g4 {[%emt 0:06:36]} 22. fxg4 {[%emt 0:00:47]} fxg4 {[%emt 0:00:01]} 23. Nf2 {[%emt 0:00:14]} Rxh1 {[%emt 0:00:07]} 24. Nxh1 {[%emt 0:00:05]} Qh6 {[%emt 0:00:02]} 25. Qe2 {[%emt 0:13:32]} Qxe6 {[%emt 0:02:10]} 26. Ng3 {[%emt 0:01:23]} Bh4 {[%emt 0:00:58]} 27. Rd6 {[%emt 0:01:40]} Qxd6 {[%emt 0:02:44]} 28. Qxg4+ {[%emt 0:00:02]} Kh8 {[%emt 0:00:03]} 29. Qxh4 {[%emt 0:00:55]} Rd8 {[%emt 0:00:04]} 30. Qg4 {[%emt 0:06:42]} Qd2+ {[%emt 0:00:15]} 31. Kb1 {[%emt 0:00:01]} Qe1+ {[%emt 0:00:10]} 32. Kc2 {[%emt 0:00:03]} Rd2+ {[%emt 0:00:07]} 33. Kc3 {[%emt 0:00:17]} Re2# {[%emt 0:00:06]} 0-1

[Event "19th Lviv Tradition 2018"]
[Site "Lviv"]
[Date "2018.01.24"]
[Round "5"]
[White "Molchanov, Oleksii"]
[Black "Bykovskiy, Oleg"]
[Result "1/2-1/2"]
[ECO "C01"]
[WhiteElo "2329"]
[BlackElo "2197"]
[Annotator "NA"]
[PlyCount "60"]
[EventDate "2018.??.??"]
[EventType "tourn"]
[EventCountry "UKR"]
[SourceTitle "playchess.com"]
[Source "ChessBase"]
[SourceQuality "1"]
[TimeControl "5400+30"]

1. e4 {[%emt 0:00:06]} e6 {[%emt 0:00:06]} 2. d4 {[%emt 0:00:13]} d5 {[%emt 0:00:05]} 3. exd5 {[%emt 0:00:48]} exd5 {[%emt 0:00:06]} 4. Nf3 {[%emt 0:00:41]} Nf6 {[%emt 0:00:23]} 5. Bd3 {[%emt 0:00:28]} Bd6 {[%emt 0:00:08]} 6. O-O {[%emt 0:00:15]} O-O {[%emt 0:00:05]} 7. Bg5 {[%emt 0:00:15]} Bg4 {[%emt 0:00:35]} 8. Nbd2 {[%emt 0:00:22]} Nbd7 {[%emt 0:00:07]} 9. c3 {[%emt 0:00:09]} h6 {[%emt 0:00:06]} 10. Bh4 $11 {[%emt 0:00:20]} c6 {[%emt 0:00:10]} 11. Qc2 {[%emt 0:00:15] LiveBook: 9 Games} Qc7 {[%emt 0:00:10]} 12. Bg3 {[%emt 0:00:46]} Rfe8 {[%emt 0:00:36]} 13. Rae1 {[%emt 0:00:09]} Rxe1 {[%emt 0:02:30]} 14. Rxe1 {[%emt 0:00:36]} Re8 {[%emt 0:00:02]} 15. Rxe8+ {[%emt 0:00:29]} Nxe8 {[%emt 0:00:01]} 16. Bf5 {[%emt 0:00:26]} Bxf5 {[%emt 0:01:13]} 17. Qxf5 {[%emt 0:00:08]} Bxg3 {[%emt 0:00:04]} 18. hxg3 {[%emt 0:00:07]} g6 {[%emt 0:00:08]} 19. Qf4 {[%emt 0:00:25]} Qxf4 {[%emt 0:00:09]} 20. gxf4 {[%emt 0:00:04]} Kf8 {[%emt 0:00:56]} 21. Kf1 {[%emt 0:02:12]} Ke7 {[%emt 0:00:12]} 22. Ke2 {[%emt 0:00:15]} Nd6 {[%emt 0:00:16]} 23. Ne5 {[%emt 0:02:02]} g5 {[%emt 0:00:17]} 24. Nxd7 {[%emt 0:00:21]} Kxd7 {[%emt 0:00:01]} 25. fxg5 {[%emt 0:00:10]} hxg5 {[%emt 0:00:02]} 26. g4 {[%emt 0:00:28]} f6 {[%emt 0:00:05]} 27. f3 {[%emt 0:00:11]} Ke6 {[%emt 0:00:06]} 28. a4 {[%emt 0:01:33]} b6 {[%emt 0:00:39]} 29. b4 {[%emt 0:00:17]} Nc8 {[%emt 0:01:22]} 30. Nb3 {[%emt 0:00:55]} Nd6 {[%emt 0:00:08]} 1/2-1/2

[Event "19th Lviv Tradition 2018"]
[Site "Lviv"]
[Date "2018.01.24"]
[Round "5"]
[White "Mosesov, Danylo"]
[Black "Moliboga, V."]
[Result "1/2-1/2"]
[ECO "A20"]
[WhiteElo "2294"]
[BlackElo "2310"]
[Annotator "NA"]
[PlyCount "120"]
[EventDate "2018.??.??"]
[EventType "tourn"]
[EventCountry "UKR"]
[SourceTitle "playchess.com"]
[Source "ChessBase"]
[SourceQuality "1"]
[TimeControl "5400+30"]

1. c4 {[%emt 0:00:00]} e5 {[%emt 0:01:31]} 2. g3 {[%emt 0:00:15]} Nc6 {[%emt 0:00:55]} 3. Bg2 {[%emt 0:00:08]} f5 {[%emt 0:00:49]} 4. Nc3 {[%emt 0:00:37]} Nf6 {[%emt 0:00:24]} 5. d3 {[%emt 0:00:15] LiveBook: 441 Partien} Bc5 {[%emt 0:00:54]} 6. e3 {[%emt 0:01:26]} O-O {[%emt 0:03:20]} 7. Nge2 {[%emt 0:00:16]} d6 {[%emt 0:06:52]} 8. O-O {[%emt 0:00:06]} a6 {[%emt 0:00:26]} 9. a3 {[%emt 0:00:52] A25: English Opening vs King's Indian with ...Nc6 but without early d3} Ba7 {[%emt 0:00:42]} 10. b4 {[%emt 0:00:34]} f4 $146 {[%emt 0:01:06]} ({Find the theoretical novelty and annotate with similar games:} 10... Be6 11. Nd5 Qd7 12. Bb2 Bxd5 13. cxd5 Ne7 14. d4 e4 15. Qb3 Nexd5 16. f3 Kh8 17. fxe4 fxe4 {0-1 (33) Tatisic,M (2239)-Maric,D (2259) Belgrade 2010}) 11. gxf4 {[%emt 0:04:30]} Bg4 {[%emt 0:02:19]} 12. b5 {[%emt 0:01:34]} axb5 {[%emt 0:00:52]} 13. cxb5 {[%emt 0:00:01]} Ne7 {[%emt 0:00:25]} 14. fxe5 {[%emt 0:10:59]} dxe5 {[%emt 0:00:29]} 15. f3 {[%emt 0:04:20]} Be6 {[%emt 0:13:01]} 16. d4 {[%emt 0:02:24]} exd4 {[%emt 0:05:41]} 17. Nxd4 {[%emt 0:00:06]} Bc4 {[%emt 0:00:35]} 18. Re1 {[%emt 0:00:16]} Qe8 {[%emt 0:02:02]} 19. Bb2 {[%emt 0:03:28]} Ng6 {[%emt 0:03:43]} 20. f4 {[%emt 0:09:32]} Nh4 {[%emt 0:02:52]} 21. Qc2 {[%emt 0:00:53]} Kh8 {[%emt 0:04:48]} 22. Rad1 {[%emt 0:03:35]} Qh5 {[%emt 0:02:45]} 23. h3 {[%emt 0:06:33]} Rad8 {[%emt 0:03:12]} 24. Qf2 {[%emt 0:07:18]} Bxd4 {[%emt 0:19:48]} 25. Rxd4 {[%emt 0:02:13]} Rxd4 {[%emt 0:00:42]} 26. exd4 {[%emt 0:00:04]} Nxg2 {[%emt 0:01:00]} 27. Qxg2 {[%emt 0:00:37]} Qf7 $11 {[%emt 0:02:48]} ({Black should play} 27... Qh4 $17 28. Ra1 (28. Re7 Nh5 $17) 28... Qxf4) 28. Qg5 {[%emt 0:13:16]} h6 {[%emt 0:04:00]} 29. Qf5 {[%emt 0:01:05]} b6 {[%emt 0:01:20]} 30. a4 {[%emt 0:10:36]} Nh5 {[%emt 0:04:21]} 31. Qxf7 {[%emt 0:00:53]} Rxf7 {[%emt 0:00:18]} 32. f5 {[%emt 0:01:38]} Nf4 {[%emt 0:00:43]} 33. Ba3 {[%emt 0:04:34]} Nxh3+ {[%emt 0:03:23]} 34. Kh2 {[%emt 0:00:07]} Ng5 {[%emt 0:04:45]} 35. Re7 {[%emt 0:02:23]} Nf3+ {[%emt 0:01:22]} 36. Kh3 {[%emt 0:00:50]} Nxd4 {[%emt 0:00:40]} 37. Rxf7 {[%emt 0:00:45]} Bxf7 {[%emt 0:00:02]} 38. Be7 {[%emt 0:00:05]} Nxf5 {[%emt 0:02:10]} 39. Bd8 {[%emt 0:00:03]} Nd6 {[%emt 0:00:21]} 40. Bxc7 {[%emt 0:00:04]} Nc4 {[%emt 0:00:04]} 41. Ne4 {[%emt 0:01:07]} Kh7 {[%emt 0:00:42]} 42. Nd6 {[%emt 0:00:17]} Nxd6 {[%emt 0:00:22]} 43. Bxd6 {[%emt 0:00:04]} Bb3 {[%emt 0:00:03]} 44. Bc7 {[%emt 0:00:06]} Bxa4 {[%emt 0:00:04]} 45. Bxb6 {[%emt 0:00:03]} Bxb5 {[%emt 0:00:09]} 46. Kg3 {[%emt 0:00:11]} g5 {[%emt 0:00:12]} 47. Bf2 {[%emt 0:00:39]} Kg6 {[%emt 0:00:06]} 48. Be1 {[%emt 0:00:12]} Kf5 {[%emt 0:00:12]} 49. Bd2 {[%emt 0:00:23]} Bd7 {[%emt 0:00:31]} 50. Be3 {[%emt 0:00:47]} h5 {[%emt 0:00:38]} 51. Bd2 {[%emt 0:00:17]} Be6 {[%emt 0:00:16]} 52. Be3 {[%emt 0:00:43]} h4+ {[%emt 0:00:35]} 53. Kh2 {[%emt 0:00:21]} Bd5 {[%emt 0:01:10]} 54. Bd2 {[%emt 0:00:20]} Kg4 {[%emt 0:01:51]} 55. Be3 {[%emt 0:00:10]} Bc6 {[%emt 0:00:10]} 56. Bd2 {[%emt 0:00:28]} Kh5 {[%emt 0:00:12]} 57. Be3 {[%emt 0:00:12]} g4 {[%emt 0:00:08]} 58. Bf2 {[%emt 0:00:10]} Kg5 {[%emt 0:00:05]} 59. Be1 {[%emt 0:00:03]} g3+ {[%emt 0:00:04]} 60. Bxg3 {[%emt 0:00:05]} hxg3+ {[%emt 0:00:05]} 1/2-1/2